fUSD/lending_fUSD_20260517
["ID","MTS","AMOUNT","RATE_DAILY","PERIOD"]
[422477092,1778982631000,-161.0,0.00022,2]
[422477097,1778982631000,-158.32389208,0.00022407,2]
[422477096,1778982631000,-395.5,0.00022353,2]
[422477095,1778982631000,-287.0,0.00022,2]
[422477094,1778982631000,-194.0,0.00022,2]
[422477091,1778982631000,-361.0,0.00022,2]
[422477103,1778982631000,-161.0,0.00023,2]
[422477146,1778982632000,-853.31513871,0.00025397,2]
[422477152,1778982632000,-1048.34,0.00025786,2]
[422477142,1778982632000,-1396.81,0.00025182,2]
[422477139,1778982632000,-212.13373586,0.00025,2]
[422477145,1778982632000,-166.66,0.00025341,2]
[422477143,1778982632000,-2000.0,0.00025231,2]
[422477141,1778982632000,-296.19440823,0.00025,2]
[422477153,1778982632000,-1021.77,0.00025786,2]
[422477144,1778982632000,-163.7787404,0.000253,2]
[422477149,1778982632000,-500.0,0.000256,9]
[422477163,1778982632000,-150.0,0.00025829,21]
[422477147,1778982632000,-387.20334238,0.00025397,2]
[422477150,1778982632000,-481.0,0.00025695,2]
[422477151,1778982632000,-1000.0,0.000257,9]
[422477155,1778982632000,-371.64,0.00025786,2]
[422477165,1778982632000,-176.41211955,0.00025829,21]
[422477164,1778982632000,-274.94282544,0.00025829,21]
[422477154,1778982632000,-2370.85,0.00025786,2]
[422477158,1778982632000,-150.0,0.00025829,21]
[422477157,1778982632000,-1600.0,0.000258,9]
[422477116,1778982632000,-287.0,0.00024,2]
[422477148,1778982632000,-1571.76200754,0.00025571,2]
[422477134,1778982632000,-1571.76200754,0.00024658,2]
[422477122,1778982632000,-1021.77,0.00024174,2]
[422477140,1778982632000,-163.7787404,0.00025,2]
[422477115,1778982632000,-194.0,0.00024,2]
[422477114,1778982632000,-239.0,0.00024,2]
[422477113,1778982632000,-161.0,0.00024,2]
[422477117,1778982632000,-500.0,0.00024018,2]
[422477119,1778982632000,-5000.0,0.00024096,2]
[422477120,1778982632000,-151.4728,0.00024173,2]
[422477128,1778982632000,-1396.81,0.00024568,2]
[422477118,1778982632000,-192.84,0.00024096,2]
[422477121,1778982632000,-1048.34,0.00024174,2]
[422477124,1778982632000,-371.64,0.00024174,2]
[422477125,1778982632000,-503.35374754,0.00024292,2]
[422477126,1778982632000,-395.5,0.00024324,2]
[422477156,1778982632000,-1396.81,0.00025796,2]
[422477127,1778982632000,-166.66,0.00024531,2]
[422477129,1778982632000,-208.44072055,0.0002457,2]
[422477131,1778982632000,-1000.0,0.00024656,2]
[422477132,1778982632000,-462.36,0.00024658,2]
[422477130,1778982632000,-215.03962261,0.0002457,2]
[422477137,1778982632000,-174.70125252,0.00025,2]
[422477133,1778982632000,-1000.0,0.00024658,2]
[422477136,1778982632000,-365.96449015,0.00025,2]
[422477138,1778982632000,-247.49820234,0.00025,2]
[422477166,1778982632000,-500.0,0.00025829,21]
[422477123,1778982632000,-2370.85,0.00024174,2]
[422477161,1778982632000,-150.0,0.00025829,21]
[422477188,1778982632000,-876.63401164,0.000262,2]
[422477192,1778982632000,-500.0,0.00026287,2]
[422477195,1778982632000,-500.0,0.00026287,2]
[422477194,1778982632000,-184.98998173,0.00026287,2]
[422477196,1778982632000,-190.46196523,0.00026287,2]
[422477197,1778982632000,-505.8622315,0.00026287,2]
[422477199,1778982632000,-513.69888162,0.00026287,2]
[422477198,1778982632000,-164.41440023,0.00026287,2]
[422477200,1778982632000,-516.38825692,0.00026287,2]
[422477201,1778982632000,-509.9741162,0.00026287,2]
[422477189,1778982632000,-530.84992629,0.00026278,2]
[422477193,1778982632000,-458.59949828,0.00026287,2]
[422477204,1778982632000,-564.62749255,0.00026287,2]
[422477205,1778982632000,-504.31823743,0.00026287,2]
[422477203,1778982632000,-502.6269472,0.00026287,2]
[422477208,1778982632000,-309543.99156518,0.00026288,2]
[422477211,1778982632000,-1587.51617371,0.00026288,2]
[422477209,1778982632000,-514.62729366,0.00026288,2]
[422477207,1778982632000,-839.0,0.00026288,5]
[422477210,1778982632000,-3922.37240693,0.00026288,2]
[422477206,1778982632000,-502.69293018,0.00026287,2]
[422477162,1778982632000,-150.0,0.00025829,21]
[422477202,1778982632000,-512.70710012,0.00026287,2]
[422477191,1778982632000,-500.0,0.00026287,2]
[422477135,1778982632000,-1000.0,0.00024841,2]
[422477190,1778982632000,-151.0,0.00026285,7]
[422477185,1778982632000,-3113.93477417,0.00026196,2]
[422477159,1778982632000,-241.21762394,0.00025829,21]
[422477167,1778982632000,-500.0,0.00025829,21]
[422477169,1778982632000,-150.0,0.00025829,21]
[422477168,1778982632000,-500.0,0.00025829,21]
[422477170,1778982632000,-500.0,0.00025829,21]
[422477174,1778982632000,-555.78017469,0.00025829,21]
[422477171,1778982632000,-500.0,0.00025829,21]
[422477172,1778982632000,-150.0,0.00025829,21]
[422477173,1778982632000,-243.06675581,0.00025829,21]
[422477176,1778982632000,-299.93318737,0.00025829,21]
[422477160,1778982632000,-150.0,0.00025829,21]
[422477178,1778982632000,-502.0383,0.000261,2]
[422477175,1778982632000,-150.0,0.00025829,21]
[422477186,1778982632000,-8320.69716299,0.00026196,2]
[422477184,1778982632000,-212.4689242,0.00026196,2]
[422477180,1778982632000,-6801.8826,0.000261,2]
[422477187,1778982632000,-178.03668944,0.00026196,2]
[422477183,1778982632000,-2500.0,0.00026188,2]
[422477182,1778982632000,-166.66,0.0002615,2]
[422477179,1778982632000,-16128.8978,0.000261,2]
[422477177,1778982632000,-2100.0,0.000259,9]
[422477181,1778982632000,-19005.72407565,0.00026103,21]
[422477220,1778982637000,-3519.56526673,0.00026288,2]
[422477218,1778982637000,-24.12225705,0.00026196,2]
[422477219,1778982637000,-456.97568358,0.00026288,2]
[422477217,1778982637000,-5865.0,0.00026196,2]
[422477216,1778982637000,-957.04791391,0.00026196,2]
[422477214,1778982637000,-20176.87661004,0.00026188,2]
[422477215,1778982637000,-2053.76538693,0.00026196,2]
[422477227,1778982639000,-3237.54315196,0.00026288,2]
[422477225,1778982639000,-1316.30482803,0.00026288,2]
[422477229,1778982639000,-1161.87785743,0.00026288,2]
[422477228,1778982639000,-403.22664929,0.00026288,2]
[422477226,1778982639000,-7866.53630911,0.00026288,2]
[422477232,1778982640000,-1161.51421182,0.00026288,2]
[422477230,1778982640000,-684.905344,0.00026288,2]
[422477235,1778982640000,-854.61559701,0.00026288,2]
[422477234,1778982640000,-3531.0630944,0.00026288,2]
[422477245,1778982640000,-500.0,0.00026476,90]
[422477236,1778982640000,-668.03,0.00026288,2]
[422477239,1778982640000,-395.5,0.00026296,2]
[422477238,1778982640000,-2158398.57818662,0.00026288,2]
[422477243,1778982640000,-1396.81,0.00026411,2]
[422477240,1778982640000,-901.98,0.000263,7]
[422477241,1778982640000,-853.31513871,0.00026397,2]
[422477242,1778982640000,-387.20334238,0.00026397,2]
[422477237,1778982640000,-1170.75638054,0.00026288,2]
[422477246,1778982640000,-500.0,0.00026476,90]
[422477251,1778982640000,-200.952461,0.00026967,14]
[422477253,1778982640000,-1396.81,0.00027025,2]
[422477254,1778982640000,-1299.0,0.000271,7]
[422477258,1778982640000,-3113.93477412,0.00027159,2]
[422477247,1778982640000,-1571.76200754,0.00026484,2]
[422477252,1778982640000,-222.828829,0.00026967,14]
[422477250,1778982640000,-166.66,0.0002696,2]
[422477257,1778982640000,-541.0,0.00027137,2]
[422477256,1778982640000,-150.0,0.00027123,20]
[422477244,1778982640000,-269.79065424,0.00026455,2]
[422477255,1778982640000,-8899.93555781,0.00027101,2]
[422477248,1778982640000,-481.0,0.00026517,2]
[422477249,1778982640000,-1041.68,0.000268,2]
[422477277,1778982641000,-1465.3,0.00027397,2]
[422477259,1778982641000,-568.87675914,0.00027397,7]
[422477263,1778982641000,-500.0,0.00027397,2]
[422477273,1778982641000,-1500.0,0.00027397,2]
[422477264,1778982641000,-500.0,0.00027397,2]
[422477261,1778982641000,-1222.4825337,0.00027397,30]
[422477260,1778982641000,-1571.76200754,0.00027397,2]
[422477262,1778982641000,-258.13556159,0.00027397,7]
[422477265,1778982641000,-242.18067144,0.00027397,2]
[422477275,1778982641000,-300.0,0.00027397,2]
[422477271,1778982641000,-150.0,0.00027397,2]
[422477280,1778982641000,-462.36,0.00027397,2]
[422477282,1778982641000,-568.87675914,0.00027397,7]
[422477286,1778982641000,-352.24,0.000274,7]
[422477293,1778982641000,-8240.4009,0.00027417,2]
[422477290,1778982641000,-9004.33,0.000274,14]
[422477300,1778982641000,-530.84992629,0.00027507,2]
[422477288,1778982641000,-1081.81,0.000274,7]
[422477296,1778982641000,-437.4,0.00027469,2]
[422477298,1778982641000,-450.0,0.00027469,2]
[422477302,1778982641000,-151.0,0.00027514,7]
[422477304,1778982641000,-151.0,0.00027514,7]
[422477306,1778982641000,-1380856.94443577,0.00027517,2]
[422477309,1778982641000,-325.09476266,0.00027517,2]
[422477284,1778982641000,-166.77041051,0.00027397,30]
[422477395,1778982643000,-1366.2,0.00027517,2]
[422477396,1778982643000,-900.43326561,0.00027517,2]
[422477397,1778982645000,-447.10498224,0.00027517,2]
[422477402,1778982646000,-6596.77,0.00027517,2]
[422477401,1778982646000,-1154.60510658,0.00027517,2]
[422477398,1778982646000,-760.21692186,0.00027517,2]
[422477400,1778982646000,-1117.57748088,0.00027517,2]
[422477399,1778982646000,-7221.0157685,0.00027517,2]
[422477409,1778982663000,300.0,0.0002871,120]
[422477408,1778982663000,1202.44528191,0.00026938,120]
[422477407,1778982663000,2500.0,0.00026938,120]
[422477406,1778982663000,2500.0,0.00026194,120]
[422477405,1778982663000,2500.0,0.0002871,120]
[422477410,1778982664000,300.0,0.00026194,120]
[422477413,1778982664000,303.26795956,0.00026938,120]
[422477412,1778982664000,300.0,0.00026938,120]
[422477411,1778982664000,300.0,0.00026938,120]
[422477416,1778982931000,483.5345816,0.00030136,120]
[422477417,1778983066000,2000.0,0.00030082,120]
[422477424,1778983336000,1041.68,0.0003,120]
[422477427,1778983418000,-25000.0,0.000119,2]
[422477428,1778983457000,200.0,5e-05,30]
[422477429,1778983458000,200.0,5e-05,30]
[422477430,1778983459000,200.0,5e-05,30]
[422477431,1778983460000,200.0,5e-05,30]
[422477432,1778983461000,200.0,5e-05,30]
[422477433,1778983462000,200.0,5e-05,30]
[422477434,1778983464000,200.0,1.8e-06,2]
[422477435,1778983465000,200.0,1.8e-06,2]
[422477436,1778983466000,200.0,1.8e-06,2]
[422477437,1778983467000,200.0,2e-06,2]
[422477439,1778983523000,2182.69,0.00030137,120]
[422477440,1778983578000,156.32,0.00028369,120]
[422477441,1778983601000,-300.0,0.00010699,2]
[422477442,1778983601000,-125.97373473,0.00010699,2]
[422477444,1778983662000,3065.19387,0.00030137,120]
[422477445,1778983721000,500.0,0.00029452,120]
[422477446,1778983746000,1000.0,0.00030136,120]
[422477448,1778983826000,2000.0,0.00029495,120]
[422477449,1778983831000,-313.00338255,0.0001069,2]
[422477450,1778983831000,-310.8,0.0001069,2]
[422477453,1778983831000,-4955.51031226,0.000107,2]
[422477452,1778983831000,-181.0,0.00010699,2]
[422477454,1778983831000,-1031.88825168,0.000107,2]
[422477451,1778983831000,-1126.81062078,0.0001069,2]
[422477455,1778983831000,-648.73496734,0.000107,2]
[422477468,1778983837000,-426.61846658,0.000107,2]
[422477510,1778983838000,-230.7,0.00020381,2]
[422477515,1778983838000,-1095.30973864,0.00020548,2]
[422477523,1778983838000,-178.0,0.00021,2]
[422477513,1778983838000,-172.02087918,0.00020468,3]
[422477517,1778983838000,-336.0,0.00021,2]
[422477521,1778983838000,-182.0,0.00021,2]
[422477525,1778983838000,-8081.90971867,0.00021332,2]
[422477527,1778983838000,-2000.0,0.00021451,2]
[422477531,1778983838000,-1095.30973864,0.00021689,2]
[422477529,1778983838000,-168.26,0.00021652,2]
[422477534,1778983838000,-336.0,0.00022,2]
[422477543,1778983838000,-230.7,0.00022353,2]
[422477539,1778983838000,-450.0,0.00022,2]
[422477549,1778983838000,-168.26,0.00022412,30]
[422477547,1778983838000,-215.04740726,0.00022407,2]
[422477545,1778983838000,-150.40769749,0.00022407,2]
[422477542,1778983838000,-178.0,0.00022,2]
[422477536,1778983838000,-152.0,0.00022,2]
[422477555,1778983838000,-1000.0,0.00022999,2]
[422477551,1778983838000,-156.32,0.00022821,2]
[422477553,1778983838000,-1095.30973864,0.00022831,2]
[422477558,1778983838000,-336.0,0.00023,2]
[422477519,1778983838000,-151.0,0.00021,2]
[422477537,1778983838000,-182.0,0.00022,2]
[422477506,1778983838000,-178.0,0.0002,2]
[422477477,1778983838000,-8081.90971867,0.00015529,2]
[422477496,1778983838000,-182.0,0.0002,2]
[422477560,1778983838000,-182.0,0.00023,2]
[422477469,1778983838000,-818.80304552,0.000107,2]
[422477470,1778983838000,-146737.35493404,0.000107,2]
[422477472,1778983838000,-1000.0,0.00011899,2]
[422477471,1778983838000,-8081.90971876,0.00011661,2]
[422477475,1778983838000,-250.0,0.00014,2]
[422477473,1778983838000,-8443.14531186,0.000119,2]
[422477479,1778983838000,-230.7,0.00016438,2]
[422477476,1778983838000,-263.20524304,0.00014576,2]
[422477478,1778983838000,-300.0,0.00016,2]
[422477474,1778983838000,-8081.90971867,0.00013595,2]
[422477508,1778983838000,-194.04175838,0.00020067,3]
[422477480,1778983838000,-8081.90971867,0.00017464,2]
[422477482,1778983838000,-532.96,0.00018349,2]
[422477483,1778983838000,-230.7,0.0001841,2]
[422477487,1778983838000,-691.33448341,0.0001995,15]
[422477489,1778983838000,-168.0,0.0002,2]
[422477485,1778983838000,-8081.90971867,0.00019398,2]
[422477491,1778983838000,-336.0,0.0002,2]
[422477502,1778983838000,-720.0,0.0002,2]
[422477494,1778983838000,-151.0,0.0002,2]
[422477504,1778983838000,-824.0,0.0002,2]
[422477500,1778983838000,-1070.91454337,0.0002,2]
[422477498,1778983838000,-400.0,0.0002,2]
[422477481,1778983838000,-350.0,0.00018,2]
[422477561,1778983838000,-1190.0,0.00023,2]
[422477596,1778983838000,-7063.72083826,0.00025,21]
[422477564,1778983838000,-168.26,0.00023172,30]
[422477598,1778983838000,-541.96263774,0.00025,5]
[422477595,1778983838000,-242.3033204,0.00025,2]
[422477600,1778983838000,-215.0785988,0.00025,7]
[422477593,1778983838000,-179.85,0.00025,2]
[422477601,1778983838000,-33684.0,0.00025,2]
[422477604,1778983838000,-242.3033204,0.000252,2]
[422477603,1778983838000,-1095.30973864,0.00025114,2]
[422477602,1778983838000,-195.96426354,0.00025,2]
[422477606,1778983838000,-4656.33,0.00025234,2]
[422477613,1778983838000,-200.0,0.000255,9]
[422477616,1778983838000,-500.0,0.000256,9]
[422477597,1778983838000,-56617.88213438,0.00025,7]
[422477605,1778983838000,-8081.90971867,0.00025201,2]
[422477617,1778983838000,-800.0,0.000257,9]
[422477614,1778983838000,-5530.0,0.000255,3]
[422477609,1778983838000,-222.828829,0.0002548,14]
[422477611,1778983838000,-400.0,0.000255,2]
[422477610,1778983838000,-200.952461,0.0002548,14]
[422477608,1778983838000,-181.49004347,0.00025397,2]
[422477607,1778983838000,-400.0,0.000253,2]
[422477620,1778983838000,-2798.68773875,0.00025791,2]
[422477618,1778983838000,-242.3033204,0.000257,2]
[422477562,1778983838000,-178.0,0.00023,2]
[422477619,1778983838000,-159.12,0.00025711,2]
[422477612,1778983838000,-242.3033204,0.000255,2]
[422477599,1778983838000,-2279.78960302,0.00025,2]
[422477615,1778983838000,-4656.33,0.00025523,2]
[422477592,1778983838000,-196.0,0.00025,2]
[422477574,1778983838000,-182.0,0.00024,2]
[422477594,1778983838000,-179.86,0.00025,2]
[422477569,1778983838000,-168.26,0.00023932,30]
[422477573,1778983838000,-336.0,0.00024,2]
[422477576,1778983838000,-2000.0,0.00024133,2]
[422477575,1778983838000,-178.0,0.00024,2]
[422477577,1778983838000,-260.49,0.00024318,2]
[422477567,1778983838000,-197.80789132,0.00023286,21]
[422477572,1778983838000,-1095.30973864,0.00023973,2]
[422477570,1778983838000,-5000.0,0.00023972,2]
[422477580,1778983838000,-1000.0,0.00024658,2]
[422477579,1778983838000,-369.89,0.00024658,2]
[422477578,1778983838000,-230.7,0.00024324,2]
[422477565,1778983838000,-8081.90971867,0.00023266,2]
[422477589,1778983838000,-400.0,0.00025,2]
[422477591,1778983838000,-337.24247352,0.00025,2]
[422477588,1778983838000,-4656.33,0.00024946,7]
[422477587,1778983838000,-7555.1130187,0.000249,2]
[422477586,1778983838000,-181.42,0.000249,2]
[422477584,1778983838000,-215.0785988,0.0002473,2]
[422477585,1778983838000,-150.0,0.000249,2]
[422477583,1778983838000,-242.3033204,0.000247,2]
[422477582,1778983838000,-159.12,0.00024692,2]
[422477590,1778983838000,-500.0,0.00025,2]
[422477581,1778983838000,-4656.33,0.00024658,2]
[422477663,1778983839000,-500.0,0.00025999,2]
[422477658,1778983839000,-500.0,0.00025999,2]
[422477660,1778983839000,-546.53007481,0.00025999,2]
[422477659,1778983839000,-500.0,0.00025999,2]
[422477657,1778983839000,-500.0,0.00025999,2]
[422477654,1778983839000,-500.0,0.00025999,2]
[422477662,1778983839000,-500.0,0.00025999,2]
[422477661,1778983839000,-500.0,0.00025999,2]
[422477656,1778983839000,-500.0,0.00025999,2]
[422477655,1778983839000,-236.64357128,0.00025999,2]
[422477666,1778983839000,-214.16604757,0.00025999,2]
[422477664,1778983839000,-500.0,0.00025999,2]
[422477653,1778983839000,-500.0,0.00025999,2]
[422477667,1778983839000,-500.0,0.00025999,2]
[422477675,1778983839000,-500.0,0.00025999,2]
[422477665,1778983839000,-500.0,0.00025999,2]
[422477678,1778983839000,-500.0,0.00025999,2]
[422477676,1778983839000,-500.0,0.00025999,2]
[422477677,1778983839000,-350.48013463,0.00025999,2]
[422477671,1778983839000,-500.0,0.00025999,2]
[422477668,1778983839000,-500.0,0.00025999,2]
[422477672,1778983839000,-500.0,0.00025999,2]
[422477673,1778983839000,-500.0,0.00025999,2]
[422477669,1778983839000,-500.0,0.00025999,2]
[422477652,1778983839000,-500.0,0.00025999,2]
[422477684,1778983839000,-500.0,0.00025999,2]
[422477674,1778983839000,-200.0,0.00025999,2]
[422477651,1778983839000,-497.58289744,0.00025999,2]
[422477623,1778983839000,-166.22900262,0.00025791,2]
[422477649,1778983839000,-500.0,0.00025999,2]
[422477691,1778983839000,-500.0,0.00025999,2]
[422477622,1778983839000,-2805.00325221,0.00025791,2]
[422477624,1778983839000,-400.0,0.000258,2]
[422477621,1778983839000,-5865.75645904,0.00025791,2]
[422477629,1778983839000,-99103.5589,0.00025899,2]
[422477627,1778983839000,-1100.0,0.000258,9]
[422477628,1778983839000,-4656.33,0.00025811,7]
[422477626,1778983839000,-2802.54129678,0.000258,2]
[422477625,1778983839000,-215.0785988,0.000258,7]
[422477637,1778983839000,-5000.0,0.000259,2]
[422477632,1778983839000,-31483.46,0.000259,2]
[422477633,1778983839000,-905.58219991,0.000259,2]
[422477634,1778983839000,-313.54230078,0.000259,2]
[422477650,1778983839000,-500.0,0.00025999,2]
[422477631,1778983839000,-3807.6037,0.000259,2]
[422477635,1778983839000,-2500.0,0.000259,2]
[422477639,1778983839000,-198.74800321,0.000259,4]
[422477630,1778983839000,-2000.0,0.000259,2]
[422477640,1778983839000,-419.85875141,0.0002599,2]
[422477638,1778983839000,-778.43004984,0.000259,2]
[422477641,1778983839000,-419.85875141,0.0002599,2]
[422477636,1778983839000,-1400.0,0.000259,9]
[422477643,1778983839000,-500.0,0.00025999,2]
[422477646,1778983839000,-500.0,0.00025999,2]
[422477644,1778983839000,-500.0,0.00025999,2]
[422477645,1778983839000,-500.0,0.00025999,2]
[422477647,1778983839000,-614.62024715,0.00025999,2]
[422477648,1778983839000,-162.06661092,0.00025999,2]
[422477642,1778983839000,-151.0,0.00025997,7]
[422477679,1778983839000,-500.0,0.00025999,2]
[422477695,1778983839000,-530.95182696,0.00025999,2]
[422477680,1778983839000,-505.1114487,0.00025999,2]
[422477726,1778983839000,-530.95182696,0.00025999,2]
[422477723,1778983839000,-530.95182696,0.00025999,2]
[422477718,1778983839000,-530.95182696,0.00025999,2]
[422477719,1778983839000,-530.95182696,0.00025999,2]
[422477727,1778983839000,-530.95182696,0.00025999,2]
[422477724,1778983839000,-530.95182696,0.00025999,2]
[422477720,1778983839000,-530.95182696,0.00025999,2]
[422477728,1778983839000,-530.95182696,0.00025999,2]
[422477725,1778983839000,-530.95182696,0.00025999,2]
[422477722,1778983839000,-530.95182696,0.00025999,2]
[422477736,1778983839000,-530.95182696,0.00025999,2]
[422477732,1778983839000,-530.95182696,0.00025999,2]
[422477730,1778983839000,-530.95182696,0.00025999,2]
[422477735,1778983839000,-530.95182696,0.00025999,2]
[422477737,1778983839000,-530.95182696,0.00025999,2]
[422477739,1778983839000,-530.95182696,0.00025999,2]
[422477729,1778983839000,-530.95182696,0.00025999,2]
[422477742,1778983839000,-530.95182696,0.00025999,2]
[422477740,1778983839000,-530.95182696,0.00025999,2]
[422477733,1778983839000,-530.95182696,0.00025999,2]
[422477731,1778983839000,-530.95182696,0.00025999,2]
[422477741,1778983839000,-530.95182696,0.00025999,2]
[422477734,1778983839000,-530.95182696,0.00025999,2]
[422477738,1778983839000,-530.95182696,0.00025999,2]
[422477743,1778983839000,-530.95182696,0.00025999,2]
[422477744,1778983839000,-501.91072122,0.00025999,2]
[422477690,1778983839000,-500.0,0.00025999,2]
[422477717,1778983839000,-530.95182696,0.00025999,2]
[422477721,1778983839000,-530.95182696,0.00025999,2]
[422477700,1778983839000,-530.95182696,0.00025999,2]
[422477706,1778983839000,-530.95182696,0.00025999,2]
[422477689,1778983839000,-605.17625212,0.00025999,2]
[422477682,1778983839000,-500.0,0.00025999,2]
[422477681,1778983839000,-500.0,0.00025999,2]
[422477687,1778983839000,-500.0,0.00025999,2]
[422477685,1778983839000,-500.0,0.00025999,2]
[422477688,1778983839000,-500.0,0.00025999,2]
[422477683,1778983839000,-500.0,0.00025999,2]
[422477693,1778983839000,-530.95182696,0.00025999,2]
[422477692,1778983839000,-500.0,0.00025999,2]
[422477704,1778983839000,-530.95182696,0.00025999,2]
[422477703,1778983839000,-530.95182696,0.00025999,2]
[422477699,1778983839000,-530.95182696,0.00025999,2]
[422477694,1778983839000,-530.95182696,0.00025999,2]
[422477686,1778983839000,-500.0,0.00025999,2]
[422477696,1778983839000,-530.95182696,0.00025999,2]
[422477697,1778983839000,-530.95182696,0.00025999,2]
[422477711,1778983839000,-530.95182696,0.00025999,2]
[422477710,1778983839000,-530.95182696,0.00025999,2]
[422477716,1778983839000,-530.95182696,0.00025999,2]
[422477709,1778983839000,-530.95182696,0.00025999,2]
[422477707,1778983839000,-530.95182696,0.00025999,2]
[422477708,1778983839000,-530.95182696,0.00025999,2]
[422477714,1778983839000,-530.95182696,0.00025999,2]
[422477713,1778983839000,-530.95182696,0.00025999,2]
[422477702,1778983839000,-530.95182696,0.00025999,2]
[422477705,1778983839000,-530.95182696,0.00025999,2]
[422477698,1778983839000,-530.95182696,0.00025999,2]
[422477701,1778983839000,-530.95182696,0.00025999,2]
[422477769,1778983840000,-400.0,0.00026,2]
[422477759,1778983840000,-521.29815739,0.00025999,2]
[422477761,1778983840000,-521.29815739,0.00025999,2]
[422477766,1778983840000,-521.29815739,0.00025999,2]
[422477758,1778983840000,-521.29815739,0.00025999,2]
[422477756,1778983840000,-521.29815739,0.00025999,2]
[422477764,1778983840000,-521.29815739,0.00025999,2]
[422477773,1778983840000,-208.44072055,0.00025782,2]
[422477771,1778983840000,-580173.81844021,0.00026,2]
[422477772,1778983840000,-1117.40781505,0.00026,2]
[422477774,1778983840000,-260.5580056,0.00026,2]
[422477775,1778983840000,-5350.0,0.00026,2]
[422477776,1778983840000,-323.311332,0.00026,2]
[422477760,1778983840000,-521.29815739,0.00025999,2]
[422477770,1778983840000,-2500000.0,0.00026,2]
[422477768,1778983840000,-752.0,0.00026,5]
[422477752,1778983840000,-521.29815739,0.00025999,2]
[422477767,1778983840000,-521.29815739,0.00025999,2]
[422477751,1778983840000,-521.29815739,0.00025999,2]
[422477755,1778983840000,-521.29815739,0.00025999,2]
[422477779,1778983840000,-924.92,0.00026,7]
[422477754,1778983840000,-521.29815739,0.00025999,2]
[422477748,1778983840000,-521.29815739,0.00025999,2]
[422477747,1778983840000,-521.29815739,0.00025999,2]
[422477765,1778983840000,-521.29815739,0.00025999,2]
[422477749,1778983840000,-521.29815739,0.00025999,2]
[422477746,1778983840000,-521.29815739,0.00025999,2]
[422477753,1778983840000,-521.29815739,0.00025999,2]
[422477750,1778983840000,-521.29815739,0.00025999,2]
[422477763,1778983840000,-521.29815739,0.00025999,2]
[422477762,1778983840000,-521.29815739,0.00025999,2]
[422477757,1778983840000,-521.29815739,0.00025999,2]
[422477745,1778983840000,-159.64351787,0.00025999,2]
[422477778,1778983840000,-910762.45222219,0.00026,2]
[422477791,1778983840000,-500.0,0.00026,2]
[422477789,1778983840000,-500.0,0.00026,2]
[422477801,1778983840000,-500.0,0.00026,2]
[422477802,1778983840000,-500.0,0.00026,2]
[422477803,1778983840000,-500.0,0.00026,2]
[422477804,1778983840000,-500.0,0.00026,2]
[422477805,1778983840000,-500.0,0.00026,2]
[422477806,1778983840000,-500.0,0.00026,2]
[422477777,1778983840000,-2012.45218495,0.00026,2]
[422477807,1778983840000,-500.0,0.00026,2]
[422477810,1778983840000,-500.0,0.00026,2]
[422477811,1778983840000,-500.0,0.00026,2]
[422477809,1778983840000,-500.0,0.00026,2]
[422477812,1778983840000,-500.0,0.00026,2]
[422477813,1778983840000,-500.0,0.00026,2]
[422477814,1778983840000,-210.25916187,0.00026,2]
[422477808,1778983840000,-500.0,0.00026,2]
[422477799,1778983840000,-500.0,0.00026,2]
[422477800,1778983840000,-500.0,0.00026,2]
[422477797,1778983840000,-500.0,0.00026,2]